bitfinex/quotes_ETHUSD_20251026
["timestamp","ask_amount","ask_price","bid_price","bid_amount"]
[1761479355124,0.001,4031.2,4030.5,0.50688]
[1761479355125,0.124,4031.0,4030.5,0.50688]
[1761479355266,0.001,4031.2,4030.5,0.50688]
[1761479355459,0.001,4031.2,4030.8,0.50688]
[1761479356151,0.001,4031.2,4028.6,1.488]
[1761479356152,0.001,4031.2,4031.0,0.50688]
[1761479356680,0.001,4031.2,4030.7,0.50688]
[1761479357061,0.001,4031.2,4030.9,0.50688]
[1761479357473,0.001,4031.2,4030.4,0.50688]
[1761479357676,0.001,4031.2,4030.4,0.87408]
[1761479358188,0.001,4031.2,4030.6,0.50688]
[1761479358904,0.001,4031.2,4030.7,0.02480958]
[1761479359108,0.001,4031.2,4030.6,0.50688]
[1761479359679,0.2142,4031.1,4029.6,0.3672]
[1761479359988,0.001,4031.2,4029.7,0.53169574]
[1761479360414,0.001,4031.2,4029.9,0.50688]
[1761479360703,0.001,4031.2,4031.1,0.65288]
[1761479363577,0.001,4031.2,4031.1,1.02008]
[1761479363780,0.001,4031.7,4031.2,0.87308]
[1761479364035,0.001,4033.7,4031.3,0.02480589]
[1761479364181,0.001,4033.7,4031.4,0.50688]
[1761479364513,0.001,4032.1,4031.5,0.02480466]
[1761479364730,0.001,4032.1,4031.6,0.50688]
[1761479364880,0.001,4032.1,4031.8,0.50688]
[1761479365080,0.001,4032.1,4032.0,0.50688]
[1761479365582,0.001,4032.1,4032.0,0.3642]
[1761479366014,0.001,4032.1,4032.0,0.4882]
[1761479367493,0.001,4032.1,4032.0,0.124]
[1761479367713,0.001,4032.1,4032.0,0.4882]
[1761479367913,0.001,4032.1,4032.0,0.124]
[1761479368111,0.001,4032.1,4032.0,0.63088]
[1761479368598,0.001,4032.1,4032.0,0.99508]
[1761479368794,0.001,4033.7,4032.1,0.50688]
[1761479369029,0.001,4033.7,4032.3,0.50688]
[1761479369399,0.001,4033.7,4032.1,0.3642]
[1761479369714,0.4651,4033.6,4031.7,0.50688]
[1761479369914,0.4651,4033.6,4031.1,0.5102]
[1761479370440,0.4651,4033.6,4031.2,0.3642]
[1761479370741,0.4651,4033.6,4031.1,0.146]
[1761479370905,0.4651,4033.6,4031.2,0.0248065]
[1761479371395,0.4651,4033.6,4031.1,0.146]
[1761479371804,0.4651,4033.6,4031.2,0.3890065]
[1761479372009,0.4651,4033.6,4031.3,0.50688]
[1761479372207,0.001,4033.7,4031.3,0.50688]
[1761479372405,0.4651,4033.6,4031.5,0.50688]
[1761479373111,0.001,4033.7,4031.7,0.50688]
[1761479373519,0.4651,4033.6,4031.9,0.50688]
[1761479374046,0.4651,4033.6,4031.7,0.50688]
[1761479374251,0.4651,4033.6,4031.9,0.3642]
[1761479374638,0.4651,4033.6,4032.0,0.02480158]
[1761479374855,0.001,4033.7,4031.9,0.3642]
[1761479375019,0.001,4033.7,4032.0,0.02480158]
[1761479375428,0.001,4033.7,4033.6,0.72508]
[1761479375655,0.001,4033.7,4033.6,1.08928]
[1761479376915,0.001,4033.7,4033.6,0.72508]
[1761479377323,0.001,4033.7,4033.6,1.08928]
[1761479377644,0.001,4033.7,4033.6,0.72508]
[1761479378150,0.001,4033.7,4033.6,1.08928]
[1761479378764,0.4651,4035.6,4033.7,0.50688]
[1761479378947,0.4651,4035.6,4033.7,0.99508]
[1761479380064,0.4651,4035.6,4033.7,1.01987113]
[1761479380222,0.4651,4035.6,4033.7,0.99508]
[1761479381267,0.2142,4035.7,4033.7,0.99508]
[1761479381268,0.2142,4035.7,4033.7,0.3642]
[1761479381491,0.4288,4035.6,4033.7,0.3642]
[1761479381659,0.4288,4035.6,4033.7,0.87108]
[1761479382476,0.4288,4035.1,4033.7,0.50688]
[1761479384779,0.4288,4035.1,4033.7,0.89587113]
[1761479385169,0.4288,4035.1,4033.7,0.53167113]
[1761479385369,0.4288,4035.1,4033.7,0.50688]
[1761479385568,0.4288,4035.1,4033.7,0.53167113]
[1761479385762,0.4288,4035.1,4033.7,0.50688]
[1761479386151,0.2362,4034.3,4033.7,0.50688]
[1761479386346,0.665,4034.3,4033.0,0.2182]
[1761479386784,0.2362,4034.3,4033.1,0.02479482]
[1761479386950,0.2362,4034.6,4033.0,0.5824]
[1761479387150,0.2362,4034.6,4033.1,0.87108]
[1761479387470,0.2362,4034.6,4033.3,0.50688]
[1761479387669,0.2362,4034.6,4033.5,0.50688]
[1761479387979,0.2362,4034.6,4033.7,0.50688]
[1761479388184,0.2362,4034.6,4033.7,0.652196]
[1761479388685,0.4288,4034.3,4033.7,0.50688]
[1761479389190,0.2362,4034.6,4033.7,0.50688]
[1761479389378,0.2362,4034.6,4033.7,0.53167113]
[1761479389585,0.2362,4034.6,4033.7,0.50688]
[1761479389992,0.2362,4034.6,4033.6,0.0752]
[1761479390192,0.2362,4034.6,4033.7,0.50688]
[1761479391096,0.4288,4034.2,4033.7,0.50688]
[1761479391275,0.4298,4033.8,4033.7,0.63088]
[1761479392278,0.001,4033.8,4033.7,0.63088]
[1761479395763,0.001,4033.8,4033.7,0.50688]
[1761479395969,0.001,4033.8,4033.7,0.63088]
[1761479398420,0.001,4033.8,4033.7,0.50688]
[1761479398594,0.001,4033.8,4033.7,0.87108]
[1761479400019,0.001,4033.8,4033.7,0.50688]
[1761479400517,0.001,4033.8,4033.7,0.89587113]
[1761479400905,0.001,4033.8,4033.7,0.50688]
[1761479401118,0.001,4033.8,4033.6,0.0752]
[1761479401294,0.001,4033.8,4033.7,0.02479113]
[1761479402018,0.001,4033.8,4033.6,0.0752]
[1761479402219,0.4298,4033.8,4033.6,0.0752]
[1761479403316,0.4298,4033.8,4033.7,0.50688]
[1761479403317,0.001,4033.8,4033.7,0.50688]
[1761479403896,0.4594,4033.8,4033.7,0.50688]
[1761479404301,0.4594,4033.8,4033.6,0.0752]
[1761479404623,0.4594,4033.8,4033.7,0.50688]
[1761479404820,0.001,4033.8,4033.7,0.50688]
[1761479405494,0.001,4034.3,4033.7,0.89587113]
[1761479405929,0.001,4034.3,4033.7,0.53167113]
[1761479406226,0.001,4034.3,4033.7,0.89587113]
[1761479406426,0.001,4034.3,4033.9,0.50688]
[1761479406725,0.001,4034.3,4034.1,0.50688]
[1761479407025,0.001,4034.3,4034.2,0.02478806]
[1761479407193,0.001,4034.7,4034.3,0.50688]
[1761479407396,0.001,4034.7,4034.4,0.02478683]
[1761479407901,0.001,4034.7,4034.6,0.50688]
[1761479408098,0.001,4034.7,4034.6,0.5316656]
[1761479408305,0.001,4034.7,4034.2,0.50688]
[1761479408531,0.001,4034.7,4034.6,0.124]
[1761479409325,0.001,4034.7,4034.1,0.50688]
[1761479409531,0.001,4034.7,4034.0,0.14027511]
[1761479409828,0.001,4034.7,4033.2,0.002]
[1761479409829,0.001,4034.7,4033.2,0.0267942]
[1761479410128,0.001,4034.7,4033.7,0.53167113]
[1761479410425,0.001,4034.7,4033.8,0.50688]
[1761479410626,0.001,4034.7,4033.9,0.5316699]
[1761479410795,0.001,4034.7,4033.9,0.8958699]
[1761479410991,0.001,4034.7,4034.1,0.50688]
[1761479411197,0.001,4034.7,4034.1,0.53166867]
[1761479411395,0.001,4034.7,4034.3,0.50688]
[1761479411606,0.001,4034.7,4034.4,0.02478683]
[1761479411835,0.001,4034.7,4034.5,0.50688]
[1761479412322,0.001,4034.7,4034.5,0.3642]
[1761479412905,0.001,4034.7,4034.3,0.02478744]
[1761479413118,0.001,4034.7,4034.5,0.50688]
[1761479414558,0.4576,4034.7,4034.0,0.33838699]
[1761479414853,0.4576,4034.7,4031.1,3.936]
[1761479414854,0.4576,4034.7,4032.7,0.3642]
[1761479415036,0.2212,4033.8,4032.7,0.3642]
[1761479415257,0.2212,4033.8,4032.2,0.3642]
[1761479415422,0.6778,4033.8,4032.2,0.3642]
[1761479415628,0.6778,4033.8,4033.7,1.50688]
[1761479415860,0.6778,4033.8,4033.7,1.0]
[1761479418039,0.6778,4033.8,4033.7,1.50688]
[1761479419755,0.2212,4033.8,4033.7,1.63088]
[1761479420148,0.6778,4033.8,4033.7,1.63088]
[1761479422327,0.2212,4033.8,4033.7,1.63088]
[1761479422563,0.124,4034.2,4033.7,1.63088]
[1761479422564,0.001,4034.7,4033.8,0.50688]
[1761479422784,0.001,4034.7,4034.6,0.50688]
[1761479422961,0.4576,4034.7,4034.6,0.50688]
[1761479424073,0.4576,4034.7,4033.7,1.0]
[1761479424569,0.4576,4034.7,4033.8,0.50688]
[1761479424728,0.4576,4034.7,4033.8,0.665088]
[1761479425070,0.001,4034.7,4033.9,0.0247899]
[1761479425264,0.001,4034.7,4033.8,0.665088]
[1761479425775,0.4566,4034.6,4033.8,0.665088]
[1761479426853,0.4566,4034.6,4033.8,0.50688]
[1761479427055,0.4566,4034.6,4033.7,1.0]
[1761479428265,0.4566,4034.6,4033.8,0.50688]
[1761479430675,0.4566,4034.6,4033.9,0.0247899]
[1761479430862,0.001,4034.7,4033.8,0.50688]
[1761479431069,0.001,4034.7,4033.7,1.0]
[1761479431070,0.001,4034.7,4034.0,0.50688]
[1761479431954,0.4566,4034.6,4034.0,0.50688]
[1761479432887,0.4566,4034.6,4034.5,0.63088]
[1761479435396,0.001,4034.7,4034.6,0.50688]
[1761479435774,0.4576,4034.7,4034.6,0.50688]
[1761479435979,0.001,4034.7,4034.5,0.124]
[1761479436412,0.4576,4034.7,4034.5,0.124]
[1761479436574,0.4576,4034.7,4033.8,0.50888]
[1761479436779,0.4576,4034.7,4034.4,0.50688]
[1761479437276,0.4576,4034.7,4033.8,0.002]
[1761479437277,0.5816,4034.7,4033.8,0.002]
[1761479437479,0.124,4034.4,4033.8,0.002]
[1761479437787,0.4566,4034.3,4033.8,0.002]
[1761479438179,0.124,4033.9,4033.8,0.002]
[1761479438390,0.4566,4034.3,4033.8,0.002]
[1761479438595,0.4473,4034.2,4033.8,0.002]
[1761479438798,0.4473,4034.6,4033.8,0.50888]
[1761479439480,0.001,4034.7,4033.8,0.667288]
[1761479439877,0.4483,4034.7,4033.8,0.667288]
[1761479440113,0.4483,4034.7,4033.8,0.50888]
[1761479440579,2.609,4034.6,4033.8,0.002]
[1761479440780,0.53284391,4034.5,4033.7,0.6912]
[1761479440990,0.001,4034.7,4033.7,0.6912]
[1761479441217,0.4428,4034.6,4033.7,0.6912]
[1761479441575,2.609,4034.3,4033.7,0.6912]
[1761479441988,1.998,4034.2,4033.7,0.6912]
[1761479442317,0.4428,4034.2,4033.7,0.6912]
[1761479442516,0.4428,4034.1,4033.7,0.6912]
[1761479448526,0.124,4033.8,4033.7,0.6912]
[1761479448892,0.5668,4033.8,4033.7,0.6912]
[1761479454009,0.001,4034.3,4033.7,1.19808]
[1761479454343,0.124,4033.9,4033.8,0.50688]
[1761479455040,0.001,4034.3,4033.8,0.50688]
[1761479455243,0.124,4034.1,4033.8,0.50688]
[1761479456021,0.5668,4034.1,4033.8,0.50688]
[1761479456222,0.124,4034.1,4033.8,0.50688]
[1761479459226,0.4428,4034.0,4033.8,0.50688]
[1761479461522,0.124,4034.1,4033.8,0.50688]
[1761479462147,0.125,4034.3,4033.8,0.758408]
[1761479462331,0.125,4034.3,4033.8,1.208308]
[1761479462537,0.001,4034.3,4033.9,0.0247899]
[1761479462737,0.001,4034.3,4034.0,0.50688]
[1761479463157,0.001,4034.3,4034.1,0.4499]
[1761479463465,0.001,4034.3,4034.2,0.63088]
[1761479463819,0.001,4034.3,4034.2,1.08078]
[1761479464619,0.001,4034.3,4034.2,0.63088]
[1761479464813,0.001,4034.3,4033.8,0.50688]
[1761479465056,0.001,4034.3,4034.0,0.50688]
[1761479465825,0.4496,4034.2,4034.0,0.50688]
[1761479466141,0.001,4034.3,4034.0,0.50688]
[1761479466845,0.4496,4034.2,4033.8,0.50688]
[1761479467053,0.124,4034.2,4033.8,0.50688]
[1761479469056,0.5564,4034.2,4033.8,0.50688]
[1761479469663,0.124,4034.2,4033.8,0.50688]
[1761479469868,0.001,4034.3,4033.8,0.50688]
[1761479469869,0.001,4034.3,4034.0,0.50688]
[1761479470167,0.001,4034.3,4033.9,0.4532899]
[1761479470168,0.001,4034.3,4034.2,0.50688]
[1761479471526,0.001,4034.3,4034.2,0.93538]
[1761479471955,0.001,4034.3,4034.2,0.50688]
[1761479472127,0.001,4034.3,4034.2,0.93538]
[1761479472678,0.001,4034.3,4034.2,0.96016806]
[1761479473057,0.001,4034.3,4034.2,0.93538]
[1761479474695,0.001,4034.7,4034.2,0.96016806]
[1761479474856,0.001,4034.7,4034.4,0.50688]
[1761479475055,0.001,4034.7,4034.5,0.02478621]
[1761479475276,0.001,4034.7,4034.6,0.50688]
[1761479475776,0.001,4034.7,4034.6,0.4285]
[1761479478657,0.001,4034.7,4034.0,0.4285]
[1761479478861,0.001,4034.7,4033.8,0.141928]
[1761479478862,0.001,4034.7,4033.8,0.570428]
[1761479479060,0.001,4034.7,4033.8,0.141928]
[1761479479876,0.001,4034.7,4034.0,0.50688]
[1761479480261,0.001,4034.7,4034.2,0.50688]
[1761479480465,0.001,4034.7,4034.3,0.02478744]
[1761479480674,0.001,4034.7,4034.4,0.50688]
[1761479481077,0.001,4034.7,4034.6,0.50688]
[1761479481554,0.001,4034.7,4034.6,0.4285]
[1761479482192,0.001,4034.7,4034.0,0.50688]
[1761479482498,0.001,4034.7,4034.6,0.4285]
[1761479484465,0.001,4034.7,4034.6,1.05938]
[1761479485975,0.001,4034.7,4034.6,1.05828]
[1761479487694,0.001,4034.8,4034.7,0.50688]
[1761479487894,0.2169,4037.6,4035.2,0.50688]
[1761479488098,0.4324,4037.4,4035.2,0.50688]
[1761479488280,0.4324,4037.4,4035.4,0.50688]
[1761479488703,0.4324,4037.4,4035.1,0.1449]
[1761479488704,0.4324,4037.4,4035.5,0.96016007]
[1761479488903,0.4324,4037.4,4035.5,0.93538]
[1761479489905,0.4324,4036.8,4035.5,0.93538]
[1761479490492,0.2169,4036.9,4035.5,0.93538]
[1761479491279,0.2169,4035.8,4035.1,0.1449]
[1761479491614,0.2169,4035.8,4035.2,0.02478191]
[1761479491910,0.2169,4035.8,4034.9,0.02478376]
[1761479492081,0.4324,4036.4,4034.9,0.02478376]
[1761479492706,0.2169,4035.9,4034.9,0.53166376]
[1761479492917,0.2169,4035.9,4034.9,0.02478376]
[1761479493236,0.2169,4035.9,4034.9,0.53166376]
[1761479494033,0.2169,4035.9,4034.9,0.50688]
[1761479494909,0.4324,4035.7,4034.9,0.50688]
[1761479495498,0.2169,4035.9,4034.9,0.50688]
[1761479495843,0.4324,4035.8,4034.9,0.50688]
[1761479496596,0.2169,4035.9,4034.9,0.50688]
[1761479496797,0.2169,4035.9,4035.0,0.53166314]
[1761479496997,0.4324,4036.5,4035.2,0.50688]
[1761479497207,0.4324,4036.5,4035.4,0.50688]
[1761479497411,0.2169,4036.9,4035.1,0.16119431]
[1761479497412,0.2169,4035.8,4035.1,0.16119431]
[1761479497700,0.2169,4035.8,4035.5,0.63088]
[1761479498026,0.4334,4035.6,4035.5,0.124]
[1761479498721,0.4324,4035.6,4034.3,0.002]
[1761479499031,0.4324,4035.6,4034.5,1.5552]
[1761479499230,0.4324,4035.6,4034.6,0.50688]
[1761479499432,0.4324,4035.6,4034.8,0.50688]
[1761479500102,0.2169,4035.8,4034.8,0.50688]
[1761479500298,0.4279,4035.7,4034.3,0.50888]
[1761479500808,0.4279,4035.7,4034.3,0.002]
[1761479503113,0.4279,4035.7,4034.4,0.02478683]
[1761479503920,0.4279,4035.7,4034.5,0.50688]
[1761479504097,0.2169,4035.8,4034.6,0.0247856]
[1761479504302,0.4279,4035.7,4034.5,0.50688]
[1761479504697,0.2169,4035.8,4034.6,0.4711]
[1761479504898,0.2169,4035.8,4034.3,0.002]
[1761479504899,0.6448,4035.8,4034.3,0.002]
[1761479505106,0.2187,4034.4,4034.3,0.002]
[1761479505531,0.6466,4034.4,4034.3,0.002]
[1761479508733,0.7706,4034.4,4034.3,0.002]
[1761479510606,0.2187,4034.7,4034.3,0.002]
[1761479510807,0.2187,4034.7,4034.4,0.50688]
[1761479511008,0.001,4035.6,4034.5,0.02478621]
[1761479511203,0.001,4035.6,4035.4,0.50688]
[1761479511514,0.4289,4035.6,4035.4,0.50688]
[1761479512115,0.4289,4035.6,4034.3,0.002]
[1761479512315,0.2187,4034.4,4034.3,0.002]
[1761479512530,0.3427,4034.4,4034.3,0.002]
[1761479512722,0.7706,4034.4,4034.3,0.002]
[1761479513246,0.3427,4034.4,4034.3,0.002]
[1761479513432,0.124,4034.4,4034.3,0.002]
[1761479514447,0.4279,4034.9,4034.3,0.002]
[1761479514749,0.5519,4034.9,4034.4,0.50688]
[1761479515246,0.4279,4034.8,4034.4,0.50688]
[1761479517659,0.124,4034.9,4034.4,0.50688]
[1761479518526,0.2187,4035.2,4034.3,0.002]
[1761479518731,0.001,4035.6,4034.9,0.50688]
[1761479518975,0.001,4035.6,4035.2,0.50688]
[1761479520171,0.001,4035.6,4034.3,0.002]
[1761479520172,0.001,4035.6,4035.3,0.0247813]
[1761479520481,0.001,4035.6,4035.5,0.63088]
[1761479520828,0.001,4035.6,4035.5,1.10198]
[1761479527004,0.001,4035.6,4034.7,0.02478499]
[1761479527005,0.4489,4035.6,4034.3,0.002]
[1761479527370,0.001,4035.6,4034.4,0.02478683]
[1761479527771,0.001,4035.6,4034.5,0.50688]
[1761479527994,0.001,4035.6,4034.6,0.0247856]
[1761479528898,0.001,4035.6,4034.5,0.4292]
[1761479529297,0.001,4035.6,4034.5,0.50688]
[1761479529496,0.001,4035.6,4034.7,0.50688]
[1761479529896,0.001,4035.6,4034.3,0.002]
[1761479529897,0.001,4035.6,4034.9,0.50688]
[1761479530297,0.001,4035.6,4035.1,0.50688]
[1761479530808,0.001,4035.6,4035.3,0.50688]
[1761479531404,0.001,4035.6,4035.4,0.02478069]
[1761479531609,0.001,4035.6,4035.4,0.53166069]
[1761479531779,0.001,4035.6,4035.5,2.06208]
[1761479531979,0.001,4035.6,4035.5,2.70045407]
[1761479532391,0.001,4035.6,4035.5,3.13105407]
[1761479533004,0.001,4035.6,4035.5,2.70045407]
[1761479533707,0.001,4035.6,4035.1,1.5552]
[1761479534099,0.001,4035.6,4035.2,0.96226191]
[1761479534512,0.001,4035.6,4034.7,0.50688]
[1761479534712,0.001,4035.6,4035.0,0.50688]
[1761479536087,0.001,4035.6,4035.0,0.4306]
[1761479536495,0.001,4035.6,4035.1,0.02478253]
[1761479536897,0.001,4035.6,4035.5,0.63088]
[1761479538027,0.4366,4035.6,4035.5,0.124]
[1761479538179,0.4366,4035.6,4035.4,2.47806908]
[1761479538386,0.4366,4035.6,4035.5,2.47800768]
[1761479538629,0.4366,4035.6,4035.5,2.47360768]
[1761479538925,0.5606,4035.6,4033.7,0.6912]
[1761479539217,0.2166,4034.4,4034.3,2.47874476]
[1761479539656,0.648,4034.4,4033.8,0.92724534]
[1761479540001,0.4292,4034.3,4033.8,0.92724534]
[1761479540436,0.4292,4034.3,4033.7,0.6912]
[1761479541347,3.0382,4034.3,4033.7,0.6912]
[1761479541504,3.0382,4034.3,4033.8,0.002]
[1761479541704,0.2166,4034.4,4033.8,0.002]
[1761479541705,0.4249,4034.2,4033.8,0.002]
[1761479542527,0.4249,4034.2,4034.0,2.47890955]
[1761479542730,0.4249,4034.2,4033.8,0.002]
[1761479542908,0.4249,4034.2,4034.1,2.47886765]
[1761479543237,0.4249,4034.2,4033.8,0.002]
[1761479543629,0.4249,4034.2,4033.9,2.47898962]
[1761479544014,0.4249,4034.2,4034.0,2.47891272]
[1761479544211,0.4249,4034.2,4033.8,2.48099211]
[1761479544411,0.4249,4034.2,4033.9,2.47898356]
[1761479544739,0.4249,4034.2,4034.1,2.47886765]
[1761479545242,0.4249,4034.2,4033.9,2.98585337]
[1761479545450,0.4249,4034.2,4034.1,2.47886765]
[1761479545943,0.2166,4034.4,4034.1,2.47886765]
[1761479545944,0.2166,4034.4,4034.3,2.98562476]
[1761479546643,0.6415,4034.4,4033.8,0.002]
[1761479547053,0.4249,4034.3,4033.8,0.002]
[1761479547433,0.4249,4034.3,4033.7,0.6912]
[1761479548121,1.5552,4034.2,4033.7,0.6912]
[1761479548518,0.4229,4034.1,4033.7,0.6912]
[1761479548946,2.47905201,4033.8,4033.7,0.6912]
[1761479549154,4.15825201,4033.8,4033.7,0.6912]
[1761479549341,4.58115201,4033.8,4033.7,0.6912]
[1761479551373,4.81210397,4033.8,4033.7,0.6912]
[1761479551535,4.81210397,4033.8,4033.7,0.6869]
[1761479551735,5.10933564,4033.8,4033.7,0.6869]
[1761479551921,5.3402876,4033.8,4033.7,0.6869]
[1761479552256,8.99797542,4033.8,4033.7,0.6869]
[1761479552456,7.8252876,4033.8,4033.7,0.6869]
[1761479552657,5.2162876,4033.8,4033.7,0.6869]
[1761479552870,8.20610397,4033.8,4033.7,0.6869]
[1761479553232,10.81510397,4033.8,4033.7,0.6869]
[1761479553549,11.84948063,4033.8,4033.7,0.6869]
[1761479553737,4.77214542,4033.7,4033.6,0.0772]
[1761479553932,8.32724208,4033.7,4033.6,1e-08]
[1761479556267,11.84424208,4033.7,4033.6,1e-08]
[1761479557465,8.32724208,4033.7,4033.6,1e-08]
[1761479557763,11.84324208,4033.7,4033.6,1e-08]
[1761479558092,3.42521012,4033.7,4033.6,1e-08]
[1761479558267,3.12866542,4033.7,4033.6,1e-08]
[1761479558432,4.68386542,4033.7,4033.6,1e-08]
[1761479558633,0.64955196,4033.7,4033.6,1e-08]
[1761479558832,5.71975196,4033.7,4033.6,1e-08]
[1761479559074,4.68386542,4033.7,4033.6,1e-08]
[1761479559275,8.19886542,4033.7,4033.6,1e-08]
[1761479559765,4.68386542,4033.7,4033.6,1e-08]
[1761479560071,8.19786542,4033.7,4033.6,1e-08]
[1761479560443,2.20475196,4033.7,4033.6,1e-08]
[1761479560637,5.4878,4033.7,4033.6,1e-08]
[1761479560837,5.71875196,4033.7,4033.6,1e-08]
[1761479561672,1.9738,4033.7,4033.6,1e-08]
[1761479562276,2.0978,4033.7,4033.6,1e-08]
[1761479563329,4.80786542,4033.7,4033.6,1e-08]
[1761479563896,2.32875196,4033.7,4033.6,1e-08]
[1761479564097,8.31986542,4033.7,4033.6,1e-08]
[1761479564597,5.84075196,4033.7,4033.6,1e-08]
[1761479564921,8.31986542,4033.7,4033.6,1e-08]
[1761479565121,5.84075196,4033.7,4033.6,1e-08]
[1761479565686,8.31986542,4033.7,4033.6,1e-08]
[1761479566120,5.84075196,4033.7,4033.6,1e-08]
[1761479566327,6.37030571,4033.7,4033.6,1e-08]
[1761479566645,6.37030571,4033.7,4033.2,0.002]
[1761479566646,4.77232982,4033.4,4033.3,1e-08]
[1761479566928,8.81188357,4033.4,4033.3,1e-08]
[1761479567087,12.49764518,4033.4,4033.3,1e-08]
[1761479567292,11.83558357,4033.4,4033.3,1e-08]
[1761479567492,11.83558357,4033.4,4033.2,0.002]
[1761479567493,7.38139129,4033.3,4033.2,0.002]
[1761479567843,8.32564504,4033.3,4033.2,0.002]
[1761479568318,8.32564504,4033.3,4033.1,0.002]
[1761479568319,7.38145276,4033.2,4033.1,0.002]
[1761479568519,8.32570651,4033.2,4033.1,0.002]
[1761479568920,11.83470651,4033.2,4033.1,0.002]
[1761479569306,8.32570651,4033.2,4033.1,0.002]
[1761479569547,11.83470651,4033.2,4033.1,0.002]
[1761479569930,7.58787455,4033.2,4033.1,0.002]
[1761479570128,12.42444732,4033.2,4033.1,0.002]
[1761479570318,11.32682651,4033.2,4033.1,0.002]
[1761479570641,12.65555696,4033.2,4033.1,0.002]
[1761479570811,11.32682651,4033.2,4033.1,0.002]
[1761479571005,7.81882651,4033.2,4033.1,0.002]
[1761479571554,11.32682651,4033.2,4033.1,0.002]
[1761479571752,7.81882651,4033.2,4033.1,0.002]
[1761479572105,11.32582651,4033.2,4033.1,0.002]
[1761479573323,12.65455696,4033.2,4033.1,0.002]
[1761479573831,11.32582651,4033.2,4033.1,0.002]
[1761479574823,10.79527276,4033.2,4033.1,0.002]
[1761479575146,5.34170923,4033.2,4033.1,0.002]
[1761479575345,11.32613003,4033.2,4033.1,0.002]
[1761479575547,8.84670923,4033.2,4033.1,0.002]
[1761479576147,5.34170923,4033.2,4033.1,0.002]
[1761479576318,9.94609421,4033.2,4033.1,0.002]
[1761479576514,11.21917807,4033.2,4033.1,0.002]
[1761479576714,5.23475727,4033.2,4033.1,0.002]
[1761479576915,5.34170923,4033.2,4033.1,0.002]
[1761479577116,10.17769477,4033.2,4033.1,0.002]
[1761479577313,8.84570923,4033.2,4033.1,0.002]
[1761479577517,2.73270923,4033.2,4033.1,0.002]
[1761479577760,6.23670923,4033.2,4033.1,0.002]
[1761479577937,8.84570923,4033.2,4033.1,0.002]
[1761479578138,11.32413003,4033.2,4033.1,0.002]
[1761479578746,11.32513003,4033.2,4033.1,0.002]
[1761479579934,8.84570923,4033.2,4033.1,0.002]
[1761479581059,8.84470923,4033.2,4033.1,0.002]
[1761479582251,5.34270923,4033.2,4033.1,0.002]
[1761479582454,0.53285727,4033.2,4032.9,0.002]
[1761479582768,0.53185727,4033.1,4032.9,0.002]
[1761479582968,6.47848068,4033.0,4032.9,2.48160524]
[1761479583284,1.42328068,4033.0,4032.9,2.48160524]
[1761479583451,1.42328068,4033.0,4032.9,2.95320524]
[1761479583452,0.53372797,4033.0,4032.9,2.95320524]
[1761479583651,0.53372797,4033.0,4032.9,2.48160524]
[1761479584782,1.20089206,4033.0,4032.9,2.48160524]
[1761479585481,0.53372797,4033.0,4032.9,2.48160524]
[1761479585687,0.23350599,4033.0,4032.9,2.95320524]
[1761479585868,0.001,4033.2,4033.1,2.47948228]
[1761479586859,0.125,4033.2,4033.1,2.95108228]
[1761479588400,0.125,4033.2,4033.1,3.49455103]
[1761479588562,0.001,4033.7,4033.1,3.49455103]
[1761479588563,0.001,4033.7,4033.6,2.47917493]
[1761479588964,0.001,4033.7,4033.6,2.91177493]
[1761479589368,0.001,4033.7,4033.6,3.41865493]
[1761479589567,0.001,4033.7,4033.6,2.91177493]
[1761479589786,0.001,4033.7,4033.6,3.45087826]
[1761479593098,0.001,4033.7,4033.6,3.95775826]
[1761479593291,0.001,4033.7,4033.6,5.51295826]
[1761479595680,0.001,4033.7,4033.6,3.95775826]
[1761479597308,0.001,4033.7,4033.6,2.47917493]
[1761479597516,0.001,4033.7,4033.6,2.91177493]
[1761479598825,0.125,4033.7,4033.6,2.47917493]
[1761479600182,0.125,4033.7,4033.4,2.47925241]
[1761479600382,0.125,4033.7,4032.9,0.002]
[1761479600383,0.124,4033.4,4032.9,0.002]
[1761479600683,0.124,4033.0,4032.9,2.48160524]
[1761479601683,0.001,4033.7,4033.6,2.47917493]
[1761479602017,0.125,4033.7,4033.6,2.47917493]
[1761479607448,0.5691,4033.7,4033.6,2.47917493]
[1761479609322,0.5691,4033.7,4032.9,0.002]
[1761479609529,0.5691,4033.7,4032.9,2.48160524]
[1761479609530,0.124,4033.0,4032.9,2.48160524]
[1761479610588,0.124,4033.0,4032.9,2.91420524]
[1761479610908,0.124,4033.0,4032.9,2.48160524]
[1761479613187,0.001,4033.7,4033.5,2.47923003]
[1761479613388,0.001,4033.7,4033.3,2.47935933]
[1761479613589,0.001,4033.7,4032.9,0.002]
[1761479613888,0.001,4033.7,4033.4,2.47925219]
[1761479614106,0.001,4033.7,4033.5,2.47923593]
[1761479614294,0.001,4033.7,4033.6,2.47917493]
[1761479614691,0.125,4033.7,4033.6,3.40761999]
[1761479615525,0.001,4033.7,4033.6,3.91449999]
[1761479615722,0.001,4033.7,4033.6,3.40761999]
[1761479615897,0.001,4033.7,4033.6,2.91177493]